fUSD/lending_fUSD_20240319
["ID","MTS","AMOUNT","RATE_DAILY","PERIOD"]
[319530930,1710827510854,-1381.97,0.0005589,120]
[319530931,1710827510870,-1232.76,0.0005589,120]
[319530932,1710827510885,-500.0,0.0005589,120]
[319530933,1710827510901,-500.0,0.0005589,120]
[319530934,1710827510918,-528.28124821,0.0005589,120]
[319530935,1710827510934,-500.0,0.0005589,120]
[319530936,1710827510951,-1906.74,0.0005589,120]
[319530937,1710827510968,-1828.07,0.0005589,120]
[319530938,1710827510986,-1034.04,0.0005589,120]
[319530939,1710827511007,-500.0,0.0005589,120]
[319530940,1710827511025,-500.0,0.0005589,120]
[319530941,1710827511042,-500.0,0.0005589,120]
[319530942,1710827511057,-500.0,0.0005589,120]
[319530943,1710827511073,-1028.45,0.0005589,120]
[319530944,1710827511089,-500.0,0.0005589,120]
[319530945,1710827511105,-500.0,0.0005589,120]
[319530946,1710827511121,-1268.03,0.0005589,120]
[319530947,1710827511137,-500.0,0.0005589,120]
[319530948,1710827511154,-1148.36,0.0005589,120]
[319530949,1710827511171,-500.0,0.0005589,120]
[319530950,1710827511187,-500.0,0.0005589,120]
[319530951,1710827511203,-1653.79,0.0005589,120]
[319530952,1710827511220,-501.59010953,0.0005589,120]
[319530953,1710827511236,-1023.81,0.0005589,120]
[319530954,1710827511256,-500.0,0.0005589,120]
[319530955,1710827511273,-500.0,0.0005589,120]
[319530956,1710827511288,-2088.57,0.0005589,120]
[319530957,1710827511305,-500.0,0.0005589,120]
[319530958,1710827511321,-562.53,0.0005589,120]
[319530959,1710827511338,-500.0,0.0005589,120]
[319530960,1710827511354,-500.0,0.0005589,2]
[319530961,1710827511371,-625.71,0.0005589,120]
[319530962,1710827511697,-500.0,0.0005589,120]
[319530963,1710827511708,-500.0,0.0005589,120]
[319530964,1710827511719,-1750.75,0.0005589,120]
[319530965,1710827511730,-501.08,0.0005589,120]
[319530966,1710827511741,-500.0,0.0005589,120]
[319530967,1710827511751,-1049.36,0.0005589,120]
[319530968,1710827511761,-827.55,0.0005589,120]
[319530969,1710827511772,-888.26,0.0005589,120]
[319530970,1710827511785,-982.82,0.0005589,120]
[319530971,1710827511795,-1779.27,0.0005589,120]
[319530972,1710827511805,-500.0,0.0005589,120]
[319530973,1710827511816,-500.0,0.0005589,120]
[319530974,1710827511826,-500.0,0.0005589,120]
[319530975,1710827511836,-500.0,0.0005589,120]
[319530976,1710827511846,-500.0,0.0005589,120]
[319530977,1710827511856,-1147.76,0.0005589,120]
[319530978,1710827511866,-1745.12,0.0005589,120]
[319530979,1710827511876,-507.71588072,0.0005589,120]
[319530980,1710827511887,-925.63,0.0005589,120]
[319530981,1710827511897,-854.16,0.0005589,120]
[319530982,1710827511907,-505.11,0.0005589,120]
[319530983,1710827511916,-500.0,0.0005589,120]
[319530984,1710827511926,-734.76,0.0005589,120]
[319530985,1710827511935,-535.28,0.0005589,120]
[319530986,1710827511945,-526.02,0.0005589,120]
[319530987,1710827511955,-500.0,0.0005589,120]
[319530988,1710827511965,-500.0,0.0005589,120]
[319530989,1710827511976,-500.0,0.0005589,120]
[319530990,1710827511987,-500.0,0.0005589,120]
[319530991,1710827511998,-500.0,0.0005589,120]
[319530992,1710827512008,-1564.61,0.0005589,120]
[319530993,1710827512017,-1313.48,0.0005589,120]
[319530994,1710827512026,-2662.67,0.0005589,120]
[319530995,1710827512036,-500.0,0.0005589,120]
[319530996,1710827512045,-500.0,0.0005589,120]
[319530997,1710827512055,-500.0,0.0005589,120]
[319530998,1710827512066,-500.0,0.0005589,120]
[319530999,1710827512076,-1397.08,0.0005589,120]
[319531000,1710827512086,-866.38,0.0005589,120]
[319531001,1710827512097,-1097.4,0.0005589,120]
[319531002,1710827512107,-1439.36,0.0005589,120]
[319531003,1710827512117,-500.0,0.0005589,120]
[319531004,1710827512127,-500.0,0.0005589,120]
[319531005,1710827512137,-500.0,0.0005589,120]
[319531006,1710827512147,-1928.4,0.0005589,120]
[319531007,1710827512157,-500.0,0.0005589,120]
[319531008,1710827512167,-500.0,0.0005589,120]
[319531009,1710827512177,-1964.81,0.0005589,120]
[319531010,1710827512187,-660.08,0.0005589,120]
[319531011,1710827512197,-1239.73,0.0005589,120]
[319531012,1710827512207,-500.0,0.0005589,120]
[319531013,1710827512217,-967.08,0.0005589,120]
[319531014,1710827512226,-500.0,0.0005589,120]
[319531015,1710827512236,-500.0,0.0005589,120]
[319531016,1710827512247,-1730.58,0.0005589,120]
[319531017,1710827512257,-500.0,0.0005589,120]
[319531018,1710827512267,-500.0,0.0005589,120]
[319531019,1710827512277,-500.0,0.0005589,120]
[319531020,1710827512287,-1374.2,0.0005589,120]
[319531021,1710827512296,-1049.65,0.0005589,120]
[319531022,1710827512306,-2060.17,0.0005589,120]
[319531023,1710827512316,-510.5,0.0005589,120]
[319531024,1710827512326,-505.32521542,0.0005589,120]
[319531025,1710827512336,-500.0,0.0005589,120]
[319531026,1710827512346,-500.0,0.0005589,120]
[319531027,1710827512356,-500.0,0.0005589,120]
[319531028,1710827512365,-500.0,0.0005589,120]
[319531029,1710827512375,-500.0,0.0005589,120]
[319531030,1710827512385,-1994.76,0.0005589,120]
[319531031,1710827512395,-500.0,0.0005589,120]
[319531032,1710827512405,-1336.07,0.0005589,120]
[319531033,1710827512416,-2991.56,0.0005589,120]
[319531034,1710827512426,-595.79,0.0005589,120]
[319531035,1710827512436,-500.0,0.0005589,120]
[319531036,1710827512446,-437.9008466,0.0005589,120]
[319531037,1710827512457,-1021.8,0.0005589,120]
[319531038,1710827512467,-505.05603986,0.0005589,120]
[319531039,1710827512477,-1288.74,0.0005589,120]
[319531040,1710827512488,-500.0,0.0005589,120]
[319531041,1710827512500,-500.0,0.0005589,120]
[319531042,1710827512510,-500.0,0.0005589,120]
[319531043,1710827512520,-1779.68,0.0005589,120]
[319531044,1710827512530,-500.0,0.0005589,120]
[319531045,1710827512541,-1753.04,0.0005589,120]
[319531046,1710827512551,-500.0,0.0005589,120]
[319531047,1710827512562,-500.0,0.0005589,120]
[319531048,1710827512571,-500.0,0.0005589,120]
[319531049,1710827512581,-500.0,0.0005589,120]
[319531050,1710827512592,-500.0,0.0005589,120]
[319531051,1710827512603,-2273.03,0.0005589,120]
[319531052,1710827512614,-509.93,0.0005589,120]
[319531053,1710827512624,-1250.13,0.0005589,120]
[319531054,1710827512634,-650.12,0.0005589,120]
[319531055,1710827512644,-500.0,0.0005589,120]
[319531056,1710827512654,-1725.58,0.0005589,120]
[319531057,1710827512664,-500.0,0.0005589,120]
[319531058,1710827512675,-500.0,0.0005589,120]
[319531059,1710827512686,-500.0,0.0005589,120]
[319531060,1710827512696,-593.53,0.0005589,120]
[319531061,1710827512706,-500.0,0.0005589,120]
[319531062,1710827512717,-500.0,0.0005589,120]
[319531063,1710827512727,-500.0,0.0005589,120]
[319531064,1710827512737,-500.0,0.0005589,120]
[319531065,1710827512750,-1663.43,0.0005589,120]
[319531066,1710827512759,-629.35116489,0.0005589,120]
[319531067,1710827512769,-318.57633955,0.0005589,120]
[319531068,1710827512779,-500.0,0.0005589,120]
[319531069,1710827512790,-500.0,0.0005589,120]
[319531070,1710827512804,-515.58,0.0005589,120]
[319531071,1710827512814,-500.0,0.0005589,120]
[319531072,1710827512824,-578.4,0.0005589,120]
[319531073,1710827512835,-500.0,0.0005589,120]
[319531074,1710827512845,-580.72,0.0005589,120]
[319531075,1710827512855,-500.0,0.0005589,120]
[319531076,1710827512865,-532.63081277,0.0005589,120]
[319531077,1710827512875,-1961.16,0.0005589,120]
[319531078,1710827512885,-500.0,0.0005589,120]
[319531079,1710827512894,-500.0,0.0005589,120]
[319531080,1710827512904,-500.0,0.0005589,120]
[319531081,1710827512914,-500.0,0.0005589,120]
[319531082,1710827512924,-633.93,0.0005589,120]
[319531083,1710827512934,-500.0,0.0005589,120]
[319531084,1710827512944,-500.0,0.0005589,120]
[319531085,1710827512956,-500.0,0.0005589,120]
[319531086,1710827512968,-500.0,0.0005589,120]
[319531087,1710827512978,-500.0,0.0005589,120]
[319531088,1710827512989,-1389.97,0.0005589,120]
[319531089,1710827513000,-500.0,0.0005589,120]
[319531090,1710827513010,-1624.64,0.0005589,120]
[319531091,1710827513020,-500.0,0.0005589,120]
[319531092,1710827513031,-500.0,0.0005589,120]
[319531093,1710827513040,-529.53537171,0.0005589,120]
[319531094,1710827513050,-500.0,0.0005589,120]
[319531095,1710827513060,-500.0,0.0005589,120]
[319531096,1710827513070,-500.0,0.0005589,120]
[319531097,1710827513080,-650.76,0.0005589,120]
[319531098,1710827513091,-500.0,0.0005589,120]
[319531099,1710827513101,-500.0,0.0005589,120]
[319531100,1710827513111,-500.0,0.0005589,120]
[319531101,1710827513121,-500.0,0.0005589,120]
[319531102,1710827513132,-500.0,0.0005589,120]
[319531103,1710827513142,-500.0,0.0005589,120]
[319531104,1710827513152,-500.0,0.0005589,120]
[319531105,1710827513163,-805.67,0.0005589,120]
[319531106,1710827513173,-500.0,0.0005589,120]
[319531107,1710827513184,-1101.66,0.0005589,120]
[319531108,1710827513195,-500.0,0.0005589,120]
[319531109,1710827513205,-500.0,0.0005589,120]
[319531110,1710827513216,-500.0,0.0005589,120]
[319531111,1710827513226,-7025.4,0.0005589,120]
[319531112,1710827513237,-500.0,0.0005589,120]
[319531113,1710827513252,-500.0,0.0005589,120]
[319531114,1710827513263,-5000.0,0.0005589,120]
[319531115,1710827513272,-500.0,0.0005589,120]
[319531116,1710827513282,-500.0,0.0005589,120]
[319531117,1710827513292,-500.0,0.0005589,120]
[319531118,1710827513302,-500.0,0.0005589,120]
[319531119,1710827513313,-500.0,0.0005589,120]
[319531120,1710827513324,-1841.28,0.0005589,120]
[319531121,1710827513334,-777.69,0.0005589,120]
[319531122,1710827513344,-411.39452381,0.0005589,120]
[319531123,1710827513354,-500.0,0.0005589,120]
[319531124,1710827513364,-329.48,0.0005589,120]
[319531125,1710827513373,-531.0,0.0005589,120]
[319531126,1710827513384,-809.07,0.0005589,120]
[319531127,1710827513394,-1186.03,0.0005589,120]
[319531128,1710827513405,-500.0,0.0005589,120]
[319531129,1710827513416,-829.75,0.0005589,120]
[319531130,1710827513426,-500.0,0.0005589,120]
[319531131,1710827513437,-500.0,0.0005589,120]
[319531132,1710827513447,-500.0,0.0005589,120]
[319531133,1710827513457,-2559.72,0.0005589,120]
[319531134,1710827513468,-500.0,0.0005589,120]
[319531135,1710827513478,-500.0,0.0005589,120]
[319531136,1710827513487,-1669.33,0.0005589,120]
[319531137,1710827513502,-500.0,0.0005589,120]
[319531138,1710827513512,-500.0,0.0005589,120]
[319531139,1710827513521,-500.0,0.0005589,120]
[319531140,1710827513531,-500.0,0.0005589,120]
[319531141,1710827513541,-1063.99,0.0005589,120]
[319531142,1710827513551,-500.0,0.0005589,120]
[319531143,1710827513562,-500.0,0.0005589,120]
[319531144,1710827513573,-258.02117142,0.0005589,120]
[319531145,1710827513582,-500.0,0.0005589,120]
[319531146,1710827513593,-1101.81,0.0005589,120]
[319531147,1710827513603,-5517.49,0.0005589,120]
[319531148,1710827513614,-829.57,0.0005589,2]
[319531149,1710827513625,-723.99,0.0005589,120]
[319531150,1710827513636,-500.0,0.0005589,120]
[319531151,1710827513647,-2000.0,0.0005589,120]
[319531152,1710827513657,-2640.45,0.0005589,120]
[319531153,1710827513666,-1422.87,0.0005589,120]
[319531154,1710827513677,-831.79,0.0005589,120]
[319531155,1710827513687,-500.0,0.0005589,120]
[319531156,1710827513696,-500.0,0.0005589,120]
[319531157,1710827513706,-1889.43,0.0005589,120]
[319531158,1710827513717,-501.44,0.0005589,120]
[319531159,1710827513727,-500.0,0.0005589,120]
[319531160,1710827513737,-1718.81,0.0005589,120]
[319531161,1710827513751,-500.0,0.0005589,120]
[319531162,1710827513761,-500.0,0.0005589,120]
[319531163,1710827513773,-500.0,0.0005589,120]
[319531164,1710827513784,-500.0,0.0005589,120]
[319531165,1710827513796,-500.0,0.0005589,120]
[319531166,1710827513807,-568.35,0.0005589,120]
[319531167,1710827513819,-500.0,0.0005589,120]
[319531168,1710827513830,-575.02,0.0005589,120]
[319531169,1710827513841,-17299.49,0.0005589,120]
[319531170,1710827513852,-500.0,0.0005589,120]
[319531171,1710827513863,-1873.11,0.0005589,120]
[319531172,1710827513875,-1866.96,0.0005589,120]
[319531173,1710827513885,-811.96,0.0005589,120]
[319531174,1710827513896,-500.0,0.0005589,120]
[319531175,1710827513905,-500.0,0.0005589,120]
[319531176,1710827513916,-500.0,0.0005589,120]
[319531177,1710827513925,-500.0,0.0005589,120]
[319531178,1710827513935,-2357.17,0.0005589,120]
[319531179,1710827513946,-500.0,0.0005589,120]
[319531180,1710827513956,-500.0,0.0005589,120]
[319531181,1710827513968,-500.0,0.0005589,120]
[319531182,1710827513979,-500.0,0.0005589,120]
[319531183,1710827513988,-1040.88,0.0005589,120]
[319531184,1710827514001,-2406.01,0.0005589,120]
[319531185,1710827514011,-500.0,0.0005589,120]
[319531186,1710827514021,-500.0,0.0005589,120]
[319531187,1710827514031,-500.0,0.0005589,120]
[319531188,1710827514041,-500.0,0.0005589,120]
[319531189,1710827514051,-6514.2,0.0005589,120]
[319531190,1710827514061,-500.0,0.0005589,120]
[319531191,1710827514072,-642.2,0.0005589,120]
[319531192,1710827514083,-1089.93,0.0005589,120]
[319531193,1710827514093,-2625.47,0.0005589,120]
[319531194,1710827514103,-660.71,0.0005589,120]
[319531195,1710827514113,-1126.8,0.0005589,120]
[319531196,1710827514124,-500.0,0.0005589,120]
[319531197,1710827514134,-500.0,0.0005589,120]
[319531198,1710827514144,-500.0,0.0005589,120]
[319531199,1710827514155,-500.0,0.0005589,120]
[319531200,1710827514166,-500.0,0.0005589,120]
[319531201,1710827514177,-500.0,0.0005589,120]
[319531202,1710827514189,-500.0,0.0005589,120]
[319531203,1710827514200,-636.97,0.0005589,120]
[319531204,1710827514211,-500.0,0.0005589,120]
[319531205,1710827514224,-1070.72,0.0005589,120]
[319531206,1710827514234,-500.0,0.0005589,120]
[319531207,1710827514249,-1652.91,0.0005589,120]
[319531208,1710827514260,-14962.68,0.0005589,120]
[319531209,1710827514271,-2901.93,0.0005589,120]
[319531210,1710827514282,-1082.41,0.0005589,120]
[319531211,1710827514292,-500.0,0.0005589,120]
[319531212,1710827514302,-940.31,0.0005589,120]
[319531213,1710827514312,-1116.86,0.0005589,120]
[319531214,1710827514323,-500.0,0.0005589,120]
[319531215,1710827514333,-199.92261495,0.0005589,120]
[319531216,1710827514344,-500.0,0.0005589,120]
[319531217,1710827514355,-500.0,0.0005589,120]
[319531218,1710827514366,-500.0,0.0005589,120]
[319531219,1710827514377,-500.0,0.0005589,120]
[319531220,1710827514388,-1733.23,0.0005589,120]
[319531221,1710827514398,-500.0,0.0005589,120]
[319531222,1710827514408,-630.47,0.0005589,120]
[319531223,1710827514418,-42693.99,0.0005589,120]
[319531224,1710827514428,-790.43,0.0005589,120]
[319531225,1710827514438,-500.0,0.0005589,120]
[319531226,1710827514448,-551.71,0.0005589,120]
[319531227,1710827514460,-1797.54,0.0005589,120]
[319531228,1710827514470,-2323.47,0.0005589,120]
[319531229,1710827514481,-500.0,0.0005589,120]
[319531230,1710827514490,-500.0,0.0005589,120]
[319531231,1710827514501,-500.0,0.0005589,120]
[319531232,1710827514510,-500.0,0.0005589,120]
[319531233,1710827514519,-1627.65,0.0005589,120]
[319531234,1710827514528,-2587.93,0.0005589,120]
[319531235,1710827514538,-500.0,0.0005589,120]
[319531236,1710827514548,-500.0,0.0005589,120]
[319531237,1710827514557,-500.0,0.0005589,120]
[319531238,1710827514567,-500.0,0.0005589,120]
[319531239,1710827514577,-500.0,0.0005589,120]
[319531240,1710827514587,-789.4,0.0005589,120]
[319531241,1710827514597,-3107.75,0.0005589,120]
[319531242,1710827514607,-500.0,0.0005589,120]
[319531243,1710827514617,-500.0,0.0005589,120]
[319531244,1710827514626,-500.0,0.0005589,120]
[319531245,1710827514636,-690.12,0.0005589,120]
[319531246,1710827514647,-2745.12,0.0005589,120]
[319531247,1710827514657,-1463.63,0.0005589,120]
[319531248,1710827514668,-1332.37,0.0005589,120]
[319531249,1710827514678,-500.0,0.0005589,120]
[319531250,1710827514688,-500.0,0.0005589,120]
[319531251,1710827514698,-1293.97,0.0005589,120]
[319531252,1710827514708,-2204.05,0.0005589,120]
[319531253,1710827514718,-20464.22,0.0005589,120]
[319531254,1710827514729,-500.0,0.0005589,120]
[319531255,1710827514740,-500.0,0.0005589,120]
[319531256,1710827514751,-788.79,0.0005589,120]
[319531257,1710827514761,-2173.0,0.0005589,120]
[319531258,1710827514772,-500.0,0.0005589,120]
[319531259,1710827514787,-500.0,0.0005589,120]
[319531260,1710827514796,-712.63,0.0005589,120]
[319531261,1710827514806,-500.0,0.0005589,120]
[319531262,1710827514817,-500.0,0.0005589,120]
[319531263,1710827514827,-500.0,0.0005589,120]
[319531264,1710827514836,-747.7,0.0005589,120]
[319531265,1710827514846,-1460.04,0.0005589,120]
[319531266,1710827514855,-983.3,0.0005589,120]
[319531267,1710827514865,-5519.3,0.0005589,120]
[319531268,1710827514875,-1137.14,0.0005589,120]
[319531269,1710827514886,-500.0,0.0005589,120]
[319531270,1710827514896,-1542.16,0.0005589,120]
[319531271,1710827514906,-500.0,0.0005589,120]
[319531272,1710827514919,-2267.0,0.0005589,120]
[319531273,1710827514929,-500.0,0.0005589,120]
[319531274,1710827514939,-727.93,0.0005589,120]
[319531275,1710827514950,-750.31,0.0005589,120]
[319531276,1710827514960,-500.0,0.0005589,120]
[319531277,1710827514970,-500.0,0.0005589,120]
[319531278,1710827514980,-4080.42,0.0005589,120]
[319531279,1710827514992,-500.0,0.0005589,120]
[319531280,1710827515003,-1928.86,0.0005589,120]
[319531281,1710827515013,-2144.67,0.0005589,120]
[319531282,1710827515023,-1213.92,0.0005589,120]
[319531283,1710827515034,-612.48,0.0005589,120]
[319531284,1710827515045,-841.27,0.0005589,120]
[319531285,1710827515056,-1271.64,0.0005589,120]
[319531286,1710827515067,-1008.76,0.0005589,120]
[319531287,1710827515077,-529.15,0.0005589,120]
[319531288,1710827515087,-500.0,0.0005589,120]
[319531289,1710827515098,-641.45,0.0005589,120]
[319531290,1710827515108,-2173.5,0.0005589,120]
[319531291,1710827515118,-2497.12,0.0005589,120]
[319531292,1710827515129,-500.0,0.0005589,120]
[319531293,1710827515140,-3047.18,0.0005589,120]
[319531294,1710827515150,-1959.73,0.0005589,120]
[319531295,1710827515161,-7410.7,0.0005589,120]
[319531296,1710827515394,-612.7,0.0005589,120]
[319531297,1710827515405,-944.04,0.0005589,120]
[319531298,1710827515416,-500.0,0.0005589,120]
[319531299,1710827515427,-500.0,0.0005589,120]
[319531300,1710827515437,-722.09,0.0005589,120]
[319531301,1710827515447,-2628.6,0.0005589,120]
[319531302,1710827515457,-500.0,0.0005589,120]
[319531303,1710827515466,-1967.08,0.0005589,120]
[319531304,1710827515476,-2164.28,0.0005589,120]
[319531305,1710827515485,-500.0,0.0005589,120]
[319531306,1710827515497,-500.0,0.0005589,120]
[319531307,1710827515506,-4020.98,0.0005589,120]
[319531308,1710827515515,-647.76,0.0005589,120]
[319531309,1710827515525,-2736.28,0.0005589,120]
[319531310,1710827515535,-500.0,0.0005589,120]
[319531311,1710827515545,-500.0,0.0005589,120]
[319531312,1710827515556,-500.0,0.0005589,120]
[319531313,1710827515567,-2992.32,0.0005589,120]
[319531314,1710827515577,-631.63,0.0005589,120]
[319531315,1710827515587,-1056.07,0.0005589,120]
[319531316,1710827515598,-500.0,0.0005589,120]
[319531317,1710827515610,-500.0,0.0005589,120]
[319531318,1710827515620,-500.0,0.0005589,120]
[319531319,1710827515631,-519.8,0.0005589,120]
[319531320,1710827515642,-500.0,0.0005589,120]
[319531321,1710827515653,-767.17,0.0005589,120]
[319531322,1710827515663,-3047.94,0.0005589,120]
[319531323,1710827515674,-2979.51,0.0005589,120]
[319531324,1710827515684,-500.0,0.0005589,120]
[319531325,1710827515694,-624.69,0.0005589,120]
[319531326,1710827515703,-6905.17,0.0005589,120]
[319531327,1710827515714,-2551.19,0.0005589,120]
[319531328,1710827515724,-1096.17,0.0005589,120]
[319531329,1710827515734,-500.0,0.0005589,120]
[319531330,1710827515747,-1285.54,0.0005589,120]
[319531331,1710827515757,-500.0,0.0005589,120]
[319531332,1710827515767,-604.78,0.0005589,120]
[319531333,1710827515777,-500.0,0.0005589,120]
[319531334,1710827515786,-500.0,0.0005589,120]
[319531335,1710827515797,-1899.25,0.0005589,120]
[319531336,1710827515811,-500.0,0.0005589,120]
[319531337,1710827515821,-501.11147601,0.0005589,120]
[319531338,1710827515831,-1182.85,0.0005589,120]
[319531339,1710827515843,-1089.16,0.0005589,120]
[319531340,1710827515853,-2224.33,0.0005589,120]
[319531341,1710827515863,-500.0,0.0005589,120]
[319531342,1710827515873,-2004.49,0.0005589,120]
[319531343,1710827515883,-1747.58,0.0005589,120]
[319531344,1710827515893,-500.0,0.0005589,120]
[319531345,1710827515903,-500.0,0.0005589,120]
[319531346,1710827515913,-1502.65,0.0005589,120]
[319531347,1710827515923,-260.65798695,0.0005589,120]
[319531348,1710827515933,-2093.13,0.0005589,120]
[319531349,1710827515943,-500.0,0.0005589,120]
[319531350,1710827515953,-500.0,0.0005589,120]
[319531351,1710827515963,-500.0,0.0005589,120]
[319531352,1710827515973,-500.0,0.0005589,120]
[319531353,1710827515984,-514.33,0.0005589,120]
[319531354,1710827515996,-500.0,0.0005589,120]
[319531355,1710827516007,-1662.12,0.0005589,120]
[319531356,1710827516017,-1393.08,0.0005589,120]
[319531357,1710827516028,-8736.8,0.0005589,120]
[319531358,1710827516038,-500.0,0.0005589,120]
[319531359,1710827516048,-500.0,0.0005589,120]
[319531360,1710827516059,-500.0,0.0005589,120]
[319531361,1710827516069,-658.54,0.0005589,120]
[319531362,1710827516079,-648.17,0.0005589,120]
[319531363,1710827516089,-500.0,0.0005589,120]
[319531364,1710827516100,-1089.65,0.0005589,120]
[319531365,1710827516110,-2720.05,0.0005589,120]
[319531366,1710827516120,-500.0,0.0005589,120]
[319531367,1710827516130,-500.0,0.0005589,120]
[319531368,1710827516140,-589.05004865,0.0005589,120]
[319531369,1710827516150,-1324.1,0.0005589,120]
[319531370,1710827516160,-604.81,0.0005589,120]
[319531371,1710827516171,-3530.08,0.0005589,120]
[319531372,1710827516181,-3588.24,0.0005589,120]
[319531373,1710827516192,-891.74,0.0005589,120]
[319531374,1710827516202,-500.0,0.0005589,120]
[319531375,1710827516213,-3450.35,0.0005589,120]
[319531376,1710827516223,-500.0,0.0005589,120]
[319531377,1710827516233,-6392.13,0.0005589,120]
[319531378,1710827516244,-818.66,0.0005589,120]
[319531379,1710827516254,-2217.17,0.0005589,120]
[319531380,1710827516264,-500.0,0.0005589,120]
[319531381,1710827516274,-712.28,0.0005589,120]
[319531382,1710827516283,-500.0,0.0005589,120]
[319531383,1710827516293,-509.79,0.0005589,120]
[319531384,1710827516302,-690.54,0.0005589,120]
[319531385,1710827516312,-3319.69,0.0005589,120]
[319531386,1710827516322,-500.0,0.0005589,120]
[319531387,1710827516332,-1812.93,0.0005589,120]
[319531388,1710827516342,-500.0,0.0005589,120]
[319531389,1710827516352,-500.0,0.0005589,120]
[319531390,1710827516363,-1962.31,0.0005589,120]
[319531391,1710827516374,-500.0,0.0005589,120]
[319531392,1710827516383,-500.0,0.0005589,120]
[319531393,1710827516424,-3097.92,0.0005589,120]
[319531394,1710827516435,-1154.31,0.0005589,120]
[319531395,1710827516445,-500.0,0.0005589,120]
[319531396,1710827516455,-685.32,0.0005589,120]
[319531397,1710827516467,-2420.04,0.0005589,120]
[319531398,1710827516477,-1532.56,0.0005589,120]
[319531399,1710827516488,-500.0,0.0005589,120]
[319531400,1710827516501,-500.0,0.0005589,120]
[319531401,1710827516511,-500.0,0.0005589,120]
[319531402,1710827516521,-1200.6,0.0005589,120]
[319531403,1710827516531,-1037.55,0.0005589,120]
[319531404,1710827516542,-500.0,0.0005589,120]
[319531405,1710827516552,-500.0,0.0005589,120]
[319531406,1710827516562,-10993.53,0.0005589,120]
[319531407,1710827516573,-1040.71,0.0005589,120]
[319531408,1710827516583,-2840.09,0.0005589,120]
[319531409,1710827516594,-500.0,0.0005589,120]
[319531410,1710827516604,-500.0,0.0005589,120]
[319531411,1710827516614,-2830.68,0.0005589,120]
[319531412,1710827516624,-2822.24,0.0005589,120]
[319531413,1710827516634,-646.52,0.0005589,120]
[319531414,1710827516645,-2123.57,0.0005589,120]
[319531415,1710827516657,-1966.25,0.0005589,120]
[319531416,1710827516667,-212.8165674,0.0005589,120]
[319531417,1710827516679,-649.44,0.0005589,120]
[319531418,1710827516689,-500.0,0.0005589,120]
[319531419,1710827516699,-500.0,0.0005589,120]
[319531420,1710827516710,-1047.73,0.0005589,120]
[319531421,1710827516720,-1134.96,0.0005589,120]
[319531422,1710827516731,-500.0,0.0005589,120]
[319531423,1710827516744,-500.0,0.0005589,120]
[319531424,1710827516754,-500.0,0.0005589,120]
[319531425,1710827516764,-3745.32,0.0005589,120]
[319531426,1710827516775,-500.0,0.0005589,120]
[319531427,1710827516788,-1379.72,0.0005589,120]
[319531428,1710827516798,-500.0,0.0005589,120]
[319531429,1710827516808,-500.0,0.0005589,120]